fUSD/lending_fUSD_20240813
["ID","MTS","AMOUNT","RATE_DAILY","PERIOD"]
[334754118,1723535509131,-500.0,0.00017635,2]
[334754119,1723535509140,-500.0,0.00017635,2]
[334754120,1723535509150,-2925.2,0.00017635,2]
[334754121,1723535509159,-150.0,0.00017637,2]
[334754122,1723535509169,-150.0,0.00017671,2]
[334754123,1723535509178,-389.2089824,0.00017682,2]
[334754124,1723535509187,-2000.0,0.000177,2]
[334754125,1723535509197,-304.3,0.000177,2]
[334754126,1723535509206,-224.38282423,0.00017711,2]
[334754127,1723535509216,-526.77808365,0.00017739,2]
[334754128,1723535509225,-201.0,0.0001779,2]
[334754129,1723535509235,-748.53191575,0.000178,2]
[334754130,1723535509244,-500.0,0.00017807,2]
[334754131,1723535509254,-771.68,0.00017807,2]
[334754132,1723535509263,-619.99710943,0.00017807,2]
[334754133,1723535509273,-823.0,0.00017815,2]
[334754134,1723535509283,-321.7629489,0.00017827,2]
[334754135,1723535509293,-13012.7708079,0.00017827,2]
[334754136,1723535509303,-1412.75,0.00017837,2]
[334754137,1723535509312,-238.34564631,0.00017837,2]
[334754138,1723535509322,-505.62845504,0.00017837,2]
[334754139,1723535509331,-508.59,0.00017838,2]
[334754140,1723535509341,-500.0,0.00017838,2]
[334754141,1723535509351,-500.0,0.00017838,2]
[334754142,1723535509360,-500.0,0.00017838,2]
[334754143,1723535509369,-500.0,0.00017838,2]
[334754144,1723535509379,-6591.73,0.00017838,2]
[334754145,1723535509388,-500.0,0.00017838,2]
[334754146,1723535509398,-1037.55,0.00017838,2]
[334754147,1723535509407,-500.0,0.00017838,2]
[334754148,1723535509416,-981.15,0.00017838,2]
[334754149,1723535509426,-553.64,0.00017838,2]
[334754150,1723535509435,-500.0,0.00017838,2]
[334754151,1723535509445,-347.28,0.00017838,2]
[334754152,1723535509455,-505.73,0.00017838,2]
[334754153,1723535509464,-888.8,0.00017838,2]
[334754154,1723535509474,-4003.23,0.00017838,2]
[334754155,1723535509483,-500.0,0.00017838,2]
[334754156,1723535509492,-500.0,0.00017838,2]
[334754157,1723535509502,-773.78,0.00017838,2]
[334754158,1723535509511,-560.08,0.00017838,2]
[334754159,1723535509520,-500.0,0.00017838,2]
[334754160,1723535509531,-1646.38,0.00017838,2]
[334754161,1723535509542,-1106.51,0.00017838,2]
[334754162,1723535509552,-1145.83,0.00017838,2]
[334754163,1723535509562,-1271.02,0.00017838,2]
[334754164,1723535509571,-756.19,0.00017838,2]
[334754165,1723535509581,-1189.17,0.00017838,2]
[334754166,1723535509591,-633.87,0.00017838,2]
[334754167,1723535509600,-500.0,0.00017838,2]
[334754168,1723535509609,-507.8,0.00017838,2]
[334754169,1723535509619,-555.42,0.00017838,2]
[334754170,1723535509629,-500.0,0.00017838,2]
[334754171,1723535509638,-869.38,0.00017838,2]
[334754172,1723535509648,-500.0,0.00017838,2]
[334754173,1723535509657,-224.38282423,0.00017839,2]
[334754174,1723535509666,-653.45,0.00017839,2]
[334754175,1723535509676,-663.86,0.00017839,2]
[334754176,1723535509685,-784.51,0.00017839,2]
[334754177,1723535509694,-500.0,0.00017839,2]
[334754178,1723535509703,-2199.74,0.00017839,2]
[334754179,1723535509712,-1837.44,0.00017839,2]
[334754180,1723535509722,-909.74,0.00017839,2]
[334754181,1723535509731,-16518.43,0.00017839,2]
[334754182,1723535509740,-500.0,0.00017839,2]
[334754183,1723535509750,-932.05,0.00017839,2]
[334754184,1723535509759,-724.39,0.00017839,2]
[334754185,1723535509769,-500.0,0.00017839,2]
[334754186,1723535509778,-587.6,0.00017839,2]
[334754187,1723535509787,-908.11,0.00017839,2]
[334754188,1723535509797,-799.22,0.00017839,2]
[334754189,1723535509806,-1082.91,0.00017839,2]
[334754190,1723535509816,-500.0,0.00017839,2]
[334754191,1723535509826,-500.0,0.00017839,2]
[334754192,1723535509835,-15076.44,0.00017839,2]
[334754193,1723535509845,-500.0,0.00017839,2]
[334754194,1723535509855,-442.19337834,0.00017839,2]
[334754195,1723535509865,-4670.57,0.00017839,2]
[334754196,1723535509875,-667.34,0.00017839,2]
[334754197,1723535509884,-571.04,0.00017839,2]
[334754198,1723535509893,-1754.66,0.00017839,2]
[334754199,1723535509902,-534.32,0.00017839,2]
[334754200,1723535509911,-524.33,0.00017839,2]
[334754201,1723535509921,-500.0,0.00017839,2]
[334754202,1723535509931,-682.76,0.00017839,2]
[334754203,1723535509940,-1600.18,0.00017839,2]
[334754204,1723535509950,-2553.18,0.00017839,2]
[334754205,1723535509960,-500.0,0.00017839,2]
[334754206,1723535509970,-549.82,0.00017839,2]
[334754207,1723535509980,-705.6,0.00017839,2]
[334754208,1723535509989,-397.15161643,0.00017839,2]
[334754209,1723535509999,-500.0,0.00017839,2]
[334754210,1723535510008,-500.0,0.00017839,2]
[334754211,1723535510018,-500.0,0.00017839,2]
[334754212,1723535510027,-500.0,0.00017839,2]
[334754213,1723535510037,-500.0,0.00017839,2]
[334754214,1723535510046,-500.0,0.00017839,2]
[334754215,1723535510056,-500.0,0.00017839,2]
[334754216,1723535510066,-803.87,0.00017839,2]
[334754217,1723535510076,-600.0,0.00017846,2]
[334754218,1723535510086,-646.44370074,0.00017846,2]
[334754219,1723535510095,-616.0,0.00017871,2]
[334754220,1723535510104,-150.0,0.00017875,2]
[334754221,1723535510114,-536.22973338,0.00017898,2]
[334754222,1723535510124,-155.0,0.00017898,2]
[334754223,1723535510134,-1011.4,0.000179,2]
[334754224,1723535510144,-478.4617876,0.00017904,2]
[334754225,1723535510153,-500.0,0.00017904,2]
[334754226,1723535510163,-500.0,0.00017909,2]
[334754227,1723535510173,-1863.44,0.00017909,2]
[334754228,1723535510182,-500.0,0.00017909,2]
[334754229,1723535510192,-150.0,0.00017909,2]
[334754230,1723535510201,-1155.62,0.00017909,2]
[334754231,1723535510210,-714.2,0.00017909,2]
[334754232,1723535510219,-1241.0,0.00017909,2]
[334754233,1723535510229,-755.25,0.00017909,2]
[334754234,1723535510238,-791.16,0.00017909,2]
[334754235,1723535510248,-946.68,0.00017909,2]
[334754236,1723535510258,-1359.34,0.00017909,2]
[334754237,1723535510268,-296.45853227,0.00017909,2]
[334754238,1723535510277,-1743.71,0.00017909,2]
[334754239,1723535510287,-1023.06,0.00017909,2]
[334754240,1723535510296,-500.0,0.00017909,2]
[334754241,1723535510306,-778.62,0.00017909,2]
[334754242,1723535510317,-1760.09,0.00017909,2]
[334754243,1723535510327,-1230.55,0.00017909,2]
[334754244,1723535510336,-537.47,0.00017909,2]
[334754245,1723535510346,-1688.57,0.00017909,2]
[334754246,1723535510356,-1001.08,0.00017909,2]
[334754247,1723535510366,-6177.95,0.00017909,2]
[334754248,1723535510376,-500.0,0.00017909,2]
[334754249,1723535510385,-500.0,0.00017909,2]
[334754250,1723535510395,-2922.39,0.00017909,2]
[334754251,1723535510404,-500.0,0.00017909,2]
[334754252,1723535510413,-1300.36,0.00017909,2]
[334754253,1723535510423,-500.0,0.00017909,2]
[334754254,1723535510432,-500.0,0.00017909,2]
[334754255,1723535510442,-609.65,0.00017909,2]
[334754256,1723535510451,-523.35,0.00017909,2]
[334754257,1723535510460,-1411.68,0.00017909,2]
[334754258,1723535510469,-500.0,0.00017909,2]
[334754259,1723535510479,-500.0,0.00017909,2]
[334754260,1723535510487,-518.03,0.00017909,2]
[334754261,1723535510497,-1209.11,0.00017909,2]
[334754262,1723535510506,-1085.25,0.00017909,2]
[334754263,1723535510515,-991.7,0.00017909,2]
[334754264,1723535510524,-507.82,0.00017909,2]
[334754265,1723535510535,-500.0,0.00017909,2]
[334754266,1723535510549,-686.92,0.00017909,2]
[334754267,1723535510558,-2622.01,0.00017909,2]
[334754268,1723535510567,-551.73,0.00017909,2]
[334754269,1723535510576,-1670.97,0.00017909,2]
[334754270,1723535510586,-670.23,0.00017909,2]
[334754271,1723535510596,-500.0,0.00017909,2]
[334754272,1723535510605,-3541.36,0.00017909,2]
[334754273,1723535510615,-500.0,0.00017909,2]
[334754274,1723535510626,-500.0,0.00017909,2]
[334754275,1723535510636,-500.0,0.00017909,2]
[334754276,1723535510646,-500.0,0.00017909,2]
[334754277,1723535510655,-1085.98,0.00017909,2]
[334754278,1723535510664,-2167.9,0.00017909,2]
[334754279,1723535510674,-500.0,0.00017909,2]
[334754280,1723535510683,-2066.64,0.00017909,2]
[334754281,1723535510693,-1180.27,0.00017909,2]
[334754282,1723535510702,-913.4,0.00017909,2]
[334754283,1723535510712,-500.0,0.00017909,2]
[334754284,1723535510723,-1756.06,0.00017909,2]
[334754285,1723535510733,-500.0,0.00017909,2]
[334754286,1723535510744,-610.16,0.00017909,2]
[334754287,1723535510754,-4710.01,0.00017909,2]
[334754288,1723535510764,-1586.08,0.00017909,2]
[334754289,1723535510772,-500.0,0.00017909,2]
[334754290,1723535510784,-842.93,0.00017909,2]
[334754291,1723535510793,-500.84,0.00017909,2]
[334754292,1723535510802,-500.0,0.00017909,2]
[334754293,1723535510810,-934.19,0.00017909,2]
[334754294,1723535510819,-4812.55,0.00017909,2]
[334754295,1723535510829,-605.96,0.00017909,2]
[334754296,1723535510838,-755.9,0.00017909,2]
[334754297,1723535510849,-1219.63,0.00017909,2]
[334754298,1723535510859,-500.0,0.00017909,2]
[334754299,1723535510869,-889.59,0.00017909,2]
[334754300,1723535510878,-2146.37,0.00017909,2]
[334754301,1723535510887,-521.65,0.00017909,2]
[334754302,1723535510896,-2584.53,0.00017909,2]
[334754303,1723535510905,-500.0,0.00017909,2]
[334754304,1723535510914,-690.9,0.00017909,2]
[334754305,1723535510924,-645.82,0.00017909,2]
[334754306,1723535510934,-4824.32,0.00017909,2]
[334754307,1723535510944,-500.0,0.00017909,2]
[334754308,1723535510953,-2092.45,0.00017909,2]
[334754309,1723535510963,-500.0,0.00017909,2]
[334754310,1723535510972,-1427.21,0.00017909,2]
[334754311,1723535510982,-309.93400728,0.00017909,2]
[334754312,1723535510991,-500.0,0.00017909,2]
[334754313,1723535511000,-500.0,0.00017909,2]
[334754314,1723535511010,-500.0,0.00017909,2]
[334754315,1723535511020,-2925.2,0.00017909,2]
[334754316,1723535511030,-167.0,0.00017921,2]
[334754317,1723535511040,-150.0,0.00017934,2]
[334754318,1723535511049,-224.38282423,0.00017966,2]
[334754319,1723535511059,-2806.2750154,0.00018,3]
[334754320,1723535511068,-676.39400393,0.00018,2]
[334754321,1723535511076,-665.89467279,0.00018,30]
[334754322,1723535511086,-591.71502257,0.00018,2]
[334754323,1723535511098,-228.61233129,0.00018,2]
[334754324,1723535511108,-750.0,0.00018,2]
[334754325,1723535511118,-2500.0,0.00018,5]
[334754326,1723535511127,-155.0,0.0001803,2]
[334754327,1723535511137,-500.0,0.00018081,2]
[334754328,1723535511146,-771.68,0.00018081,2]
[334754329,1723535511156,-224.38282423,0.00018094,2]
[334754330,1723535511166,-1412.75,0.00018111,2]
[334754331,1723535511175,-508.59,0.00018112,2]
[334754332,1723535511185,-500.0,0.00018112,2]
[334754333,1723535511195,-500.0,0.00018112,2]
[334754334,1723535511204,-500.0,0.00018112,2]
[334754335,1723535511213,-510.06777156,0.00018112,2]
[334754336,1723535511222,-6591.73,0.00018112,2]
[334754337,1723535511231,-500.0,0.00018112,2]
[334754338,1723535511241,-1037.55,0.00018112,2]
[334754339,1723535511250,-500.0,0.00018112,2]
[334754340,1723535511259,-981.15,0.00018112,2]
[334754341,1723535511268,-553.64,0.00018112,2]
[334754342,1723535511279,-500.0,0.00018112,2]
[334754343,1723535511296,-347.28,0.00018112,2]
[334754344,1723535511305,-505.73,0.00018112,2]
[334754345,1723535511314,-888.8,0.00018112,2]
[334754346,1723535511323,-4003.23,0.00018112,2]
[334754347,1723535511332,-226.7718438,0.00018112,2]
[334754348,1723535511342,-500.0,0.00018112,2]
[334754349,1723535511351,-773.78,0.00018112,2]
[334754350,1723535511360,-560.08,0.00018112,2]
[334754351,1723535511370,-500.0,0.00018112,2]
[334754352,1723535511379,-1646.38,0.00018112,2]
[334754353,1723535511389,-1106.51,0.00018112,2]
[334754354,1723535511398,-1145.83,0.00018112,2]
[334754355,1723535511408,-1271.02,0.00018112,2]
[334754356,1723535511417,-756.19,0.00018112,2]
[334754357,1723535511426,-1189.17,0.00018112,2]
[334754358,1723535511437,-633.87,0.00018112,2]
[334754359,1723535511446,-500.0,0.00018112,2]
[334754360,1723535511456,-507.8,0.00018112,2]
[334754361,1723535511467,-555.42,0.00018112,2]
[334754362,1723535511476,-500.0,0.00018112,2]
[334754363,1723535511485,-869.38,0.00018112,2]
[334754364,1723535511494,-500.0,0.00018112,2]
[334754365,1723535511503,-150.0,0.00018113,2]
[334754366,1723535511512,-653.45,0.00018113,2]
[334754367,1723535511523,-663.86,0.00018113,2]
[334754368,1723535511532,-784.51,0.00018113,2]
[334754369,1723535511542,-500.0,0.00018113,2]
[334754370,1723535511557,-2199.74,0.00018113,2]
[334754371,1723535511566,-1837.44,0.00018113,2]
[334754372,1723535511575,-909.74,0.00018113,2]
[334754373,1723535511584,-16518.43,0.00018113,2]
[334754374,1723535511594,-500.0,0.00018113,2]
[334754375,1723535511603,-932.05,0.00018113,2]
[334754376,1723535511612,-724.39,0.00018113,2]
[334754377,1723535511623,-500.0,0.00018113,2]
[334754378,1723535511632,-587.6,0.00018113,2]
[334754379,1723535511642,-908.11,0.00018113,2]
[334754380,1723535511651,-799.22,0.00018113,2]
[334754381,1723535511661,-1082.91,0.00018113,2]
[334754382,1723535511670,-500.0,0.00018113,2]
[334754383,1723535511679,-500.0,0.00018113,2]
[334754384,1723535511688,-15076.44,0.00018113,2]
[334754385,1723535511698,-500.0,0.00018113,2]
[334754386,1723535511707,-4670.57,0.00018113,2]
[334754387,1723535511888,-667.34,0.00018113,2]
[334754388,1723535511898,-571.04,0.00018113,2]
[334754389,1723535511907,-1754.66,0.00018113,2]
[334754390,1723535511918,-534.32,0.00018113,2]
[334754391,1723535511930,-524.33,0.00018113,2]
[334754392,1723535511941,-500.0,0.00018113,2]
[334754393,1723535511950,-682.76,0.00018113,2]
[334754394,1723535511960,-1600.18,0.00018113,2]
[334754395,1723535511971,-2553.18,0.00018113,2]
[334754396,1723535511980,-415.65863855,0.00018113,2]
[334754397,1723535511989,-549.82,0.00018113,2]
[334754398,1723535511999,-705.6,0.00018113,2]
[334754399,1723535512008,-500.0,0.00018113,2]
[334754400,1723535512018,-500.0,0.00018113,2]
[334754401,1723535512028,-500.0,0.00018113,2]
[334754402,1723535512037,-500.0,0.00018113,2]
[334754403,1723535512046,-500.0,0.00018113,2]
[334754404,1723535512056,-500.0,0.00018113,2]
[334754405,1723535512065,-500.0,0.00018113,2]
[334754406,1723535512075,-803.87,0.00018113,2]
[334754407,1723535512089,-2423.3872,0.00018144,2]
[334754408,1723535512098,-150.0,0.00018145,2]
[334754409,1723535512108,-192.24172752,0.00018176,2]
[334754410,1723535512119,-192.24172752,0.00018176,2]
[334754411,1723535512129,-179.4623719,0.00018176,2]
[334754412,1723535512139,-500.0,0.00018183,2]
[334754413,1723535512150,-1863.44,0.00018183,2]
[334754414,1723535512161,-500.0,0.00018183,2]
[334754415,1723535512171,-287.37543375,0.00018183,2]
[334754416,1723535512181,-1155.62,0.00018183,2]
[334754417,1723535512191,-714.2,0.00018183,2]
[334754418,1723535512200,-1241.0,0.00018183,2]
[334754419,1723535512211,-755.25,0.00018183,2]
[334754420,1723535512220,-791.16,0.00018183,2]
[334754421,1723535512232,-946.68,0.00018183,2]
[334754422,1723535512242,-1359.34,0.00018183,2]
[334754423,1723535512252,-1743.71,0.00018183,2]
[334754424,1723535512263,-1023.06,0.00018183,2]
[334754425,1723535512272,-500.0,0.00018183,2]
[334754426,1723535512283,-778.62,0.00018183,2]
[334754427,1723535512293,-1760.09,0.00018183,2]
[334754428,1723535512303,-1230.55,0.00018183,2]
[334754429,1723535512312,-537.47,0.00018183,2]
[334754430,1723535512323,-1688.57,0.00018183,2]
[334754431,1723535512333,-1001.08,0.00018183,2]
[334754432,1723535512343,-6177.95,0.00018183,2]
[334754433,1723535512353,-500.0,0.00018183,2]
[334754434,1723535512362,-500.0,0.00018183,2]
[334754435,1723535512374,-2922.39,0.00018183,2]
[334754436,1723535512383,-472.1875386,0.00018183,2]
[334754437,1723535512393,-1300.36,0.00018183,2]
[334754438,1723535512403,-500.0,0.00018183,2]
[334754439,1723535512413,-500.0,0.00018183,2]
[334754440,1723535512423,-609.65,0.00018183,2]
[334754441,1723535512435,-523.35,0.00018183,2]
[334754442,1723535512446,-1411.68,0.00018183,2]
[334754443,1723535512456,-500.0,0.00018183,2]
[334754444,1723535512466,-500.0,0.00018183,2]
[334754445,1723535512476,-518.03,0.00018183,2]
[334754446,1723535512487,-1209.11,0.00018183,2]
[334754447,1723535512499,-1085.25,0.00018183,2]
[334754448,1723535512509,-991.7,0.00018183,2]
[334754449,1723535512519,-507.82,0.00018183,2]
[334754450,1723535512530,-500.0,0.00018183,2]
[334754451,1723535512540,-686.92,0.00018183,2]
[334754452,1723535512555,-2622.01,0.00018183,2]
[334754453,1723535512565,-551.73,0.00018183,2]
[334754454,1723535512575,-1670.97,0.00018183,2]
[334754455,1723535512585,-670.23,0.00018183,2]
[334754456,1723535512595,-500.0,0.00018183,2]
[334754457,1723535512605,-3541.36,0.00018183,2]
[334754458,1723535512615,-500.0,0.00018183,2]
[334754459,1723535512626,-500.0,0.00018183,2]
[334754460,1723535512636,-500.0,0.00018183,2]
[334754461,1723535512646,-541.48727793,0.00018183,2]
[334754462,1723535512656,-1085.98,0.00018183,2]
[334754463,1723535512665,-2167.9,0.00018183,2]
[334754464,1723535512675,-500.0,0.00018183,2]
[334754465,1723535512685,-2066.64,0.00018183,2]
[334754466,1723535512695,-1180.27,0.00018183,2]
[334754467,1723535512704,-913.4,0.00018183,2]
[334754468,1723535512714,-500.0,0.00018183,2]
[334754469,1723535512724,-1756.06,0.00018183,2]
[334754470,1723535512734,-500.0,0.00018183,2]
[334754471,1723535512745,-610.16,0.00018183,2]
[334754472,1723535512755,-4710.01,0.00018183,2]
[334754473,1723535512765,-1586.08,0.00018183,2]
[334754474,1723535512777,-500.0,0.00018183,2]
[334754475,1723535512787,-842.93,0.00018183,2]
[334754476,1723535512797,-500.84,0.00018183,2]
[334754477,1723535512808,-500.0,0.00018183,2]
[334754478,1723535512818,-934.19,0.00018183,2]
[334754479,1723535512828,-4812.55,0.00018183,2]
[334754480,1723535512839,-605.96,0.00018183,2]
[334754481,1723535512849,-755.9,0.00018183,2]
[334754482,1723535512860,-1219.63,0.00018183,2]
[334754483,1723535512871,-500.0,0.00018183,2]
[334754484,1723535512881,-889.59,0.00018183,2]
[334754485,1723535512891,-2146.37,0.00018183,2]
[334754486,1723535512901,-521.65,0.00018183,2]
[334754487,1723535512911,-2584.53,0.00018183,2]
[334754488,1723535512921,-500.0,0.00018183,2]
[334754489,1723535512931,-690.9,0.00018183,2]
[334754490,1723535512940,-645.82,0.00018183,2]
[334754491,1723535512949,-4824.32,0.00018183,2]
[334754492,1723535512958,-500.0,0.00018183,2]
[334754493,1723535512968,-2092.45,0.00018183,2]
[334754494,1723535512978,-500.0,0.00018183,2]
[334754495,1723535512987,-1427.21,0.00018183,2]
[334754496,1723535512998,-500.0,0.00018183,2]
[334754497,1723535513007,-500.0,0.00018183,2]
[334754498,1723535513017,-559.89464221,0.00018183,2]
[334754499,1723535513027,-2925.2,0.00018183,2]
[334754500,1723535513036,-201.0,0.0001819,2]
[334754501,1723535513046,-150.0,0.00018197,2]
[334754502,1723535513055,-224.38282423,0.00018221,2]
[334754503,1723535513065,-47247.129179,0.00018229,2]
[334754504,1723535513075,-237.97808548,0.00018229,2]
[334754505,1723535513085,-237.97808548,0.00018231,2]
[334754506,1723535513095,-237.97808548,0.00018232,2]
[334754507,1723535513104,-237.97808548,0.00018233,2]
[334754508,1723535513114,-237.97808548,0.00018233,2]
[334754509,1723535513123,-949.20706667,0.00018234,10]
[334754510,1723535513133,-237.97808548,0.00018234,2]
[334754511,1723535513143,-383.03302298,0.00018238,2]
[334754512,1723535513152,-383.03302298,0.00018238,2]
[334754513,1723535513162,-383.03302298,0.0001824,2]
[334754514,1723535513173,-237.97808548,0.00018243,2]
[334754515,1723535513183,-331356.61566893,0.00018244,2]
[334754516,1723535513193,-338.18913153,0.00018245,2]
[334754517,1723535513202,-47247.129179,0.00018246,2]
[334754518,1723535513212,-237.97808548,0.00018246,2]
[334754519,1723535513222,-331356.61566893,0.0001825,2]
[334754520,1723535513232,-331356.61566893,0.0001825,2]
[334754521,1723535513242,-331356.61566893,0.00018251,2]
[334754522,1723535513251,-331356.61566893,0.00018252,2]
[334754523,1723535513261,-383.03302298,0.00018253,2]
[334754524,1723535513270,-383.03302298,0.00018255,2]
[334754525,1723535513281,-383.03302298,0.0001826,2]
[334754526,1723535513291,-47247.129179,0.00018263,2]
[334754527,1723535513300,-47247.129179,0.00018267,2]
[334754528,1723535513309,-47247.129179,0.00018273,2]
[334754529,1723535513319,-47247.129179,0.00018276,2]
[334754530,1723535513329,-383.03302298,0.00018279,2]
[334754531,1723535513339,-331356.61566893,0.00018285,2]
[334754532,1723535513348,-331356.61566893,0.00018289,2]
[334754533,1723535513358,-47247.129179,0.0001829,2]
[334754534,1723535513368,-383.03302298,0.00018292,2]
[334754535,1723535513378,-20638.88396081,0.00018294,2]
[334754536,1723535513388,-47247.129179,0.00018296,2]
[334754537,1723535513397,-331356.61566893,0.00018296,2]
[334754538,1723535513406,-152.25,0.00018299,2]
[334754539,1723535513416,-224.38282423,0.00018348,2]
[334754540,1723535513425,-150.0,0.00018351,2]
[334754541,1723535513435,-515.61662684,0.00018355,2]
[334754542,1723535513445,-771.68,0.00018355,2]
[334754543,1723535513454,-1103.589328,0.00018356,2]
[334754544,1723535513463,-308.32,0.00018373,2]
[334754545,1723535513473,-1412.75,0.00018385,2]
[334754546,1723535513483,-508.59,0.00018386,2]
[334754547,1723535513493,-500.0,0.00018386,2]
[334754548,1723535513503,-500.0,0.00018386,2]
[334754549,1723535513512,-500.0,0.00018386,2]
[334754550,1723535513521,-6591.73,0.00018386,2]
[334754551,1723535513531,-500.0,0.00018386,2]
[334754552,1723535513541,-1037.55,0.00018386,2]
[334754553,1723535513554,-443.59583449,0.00018386,2]
[334754554,1723535513564,-981.15,0.00018386,2]
[334754555,1723535513574,-553.64,0.00018386,2]
[334754556,1723535513583,-500.0,0.00018386,2]
[334754557,1723535513594,-347.28,0.00018386,2]
[334754558,1723535513603,-505.73,0.00018386,2]
[334754559,1723535513612,-888.8,0.00018386,2]
[334754560,1723535513622,-4003.23,0.00018386,2]
[334754561,1723535513633,-500.0,0.00018386,2]
[334754562,1723535513642,-773.78,0.00018386,2]
[334754563,1723535513654,-560.08,0.00018386,2]
[334754564,1723535513664,-500.0,0.00018386,2]
[334754565,1723535513673,-1646.38,0.00018386,2]
[334754566,1723535513683,-1106.51,0.00018386,2]
[334754567,1723535513692,-1145.83,0.00018386,2]
[334754568,1723535513704,-1271.02,0.00018386,2]
[334754569,1723535513715,-756.19,0.00018386,2]
[334754570,1723535513726,-1189.17,0.00018386,2]
[334754571,1723535513736,-633.87,0.00018386,2]
[334754572,1723535513747,-500.0,0.00018386,2]
[334754573,1723535513758,-507.8,0.00018386,2]
[334754574,1723535513768,-555.42,0.00018386,2]
[334754575,1723535513779,-187.43106176,0.00018386,2]
[334754576,1723535513789,-869.38,0.00018386,2]
[334754577,1723535513798,-500.0,0.00018386,2]
[334754578,1723535513808,-653.45,0.00018387,2]
[334754579,1723535513817,-663.86,0.00018387,2]
[334754580,1723535513827,-784.51,0.00018387,2]
[334754581,1723535513836,-380.69947302,0.00018387,2]
[334754582,1723535513846,-2199.74,0.00018387,2]
[334754583,1723535513856,-1837.44,0.00018387,2]
[334754584,1723535513866,-909.74,0.00018387,2]
[334754585,1723535513876,-16518.43,0.00018387,2]
[334754586,1723535513887,-500.0,0.00018387,2]
[334754587,1723535513897,-932.05,0.00018387,2]
[334754588,1723535513907,-724.39,0.00018387,2]
[334754589,1723535513917,-150.82914768,0.00018387,2]
[334754590,1723535513926,-587.6,0.00018387,2]
[334754591,1723535513935,-908.11,0.00018387,2]
[334754592,1723535513945,-799.22,0.00018387,2]
[334754593,1723535513955,-1082.91,0.00018387,2]
[334754594,1723535513965,-500.0,0.00018387,2]
[334754595,1723535513975,-500.0,0.00018387,2]
[334754596,1723535513984,-15076.44,0.00018387,2]
[334754597,1723535513994,-500.0,0.00018387,2]
[334754598,1723535514003,-4670.57,0.00018387,2]
[334754599,1723535514015,-667.34,0.00018387,2]
[334754600,1723535514025,-571.04,0.00018387,2]
[334754601,1723535514036,-1754.66,0.00018387,2]
[334754602,1723535514045,-534.32,0.00018387,2]
[334754603,1723535514055,-524.33,0.00018387,2]
[334754604,1723535514064,-553.18422363,0.00018387,2]
[334754605,1723535514073,-682.76,0.00018387,2]
[334754606,1723535514083,-1600.18,0.00018387,2]
[334754607,1723535514093,-2553.18,0.00018387,2]
[334754608,1723535514103,-549.82,0.00018387,2]
[334754609,1723535514113,-705.6,0.00018387,2]
[334754610,1723535514123,-500.0,0.00018387,2]
[334754611,1723535514132,-500.0,0.00018387,2]
[334754612,1723535514142,-500.0,0.00018387,2]
[334754613,1723535514151,-500.0,0.00018387,2]
[334754614,1723535514161,-500.0,0.00018387,2]
[334754615,1723535514171,-500.0,0.00018387,2]
[334754616,1723535514180,-612.01948184,0.00018387,2]
[334754617,1723535514190,-803.87,0.00018387,2]